[Event "Groningen Festival 2018"]
[Site "Groningen"]
[Date "2018.12.29"]
[Round "8"]
[White "Baum, Bernd"]
[Black "Beerdsen, Thomas"]
[Result "1/2-1/2"]
[ECO "A25"]
[WhiteElo "2252"]
[BlackElo "2477"]
[Annotator "ChessBase"]
[PlyCount "130"]
[EventDate "2018.12.22"]
[EventType "swiss"]
[EventCountry "NED"]
[SourceTitle "playchess.com"]
[Source "ChessBase"]
[SourceQuality "1"]
[TimeControl "40/5400+30:1800+30"]

1. g3 {[%emt 0:00:00]} f5 {[%emt 0:00:00]} 2. c4 {[%emt 0:00:47]} Nf6 {[%emt 0:00:07]} 3. Nc3 {[%emt 0:00:20]} g6 {[%emt 0:00:19]} 4. Bg2 {[%emt 0:00:18]} Bg7 {[%emt 0:00:35]} 5. d3 {[%emt 0:02:33]} O-O {[%emt 0:01:34]} 6. e3 {[%emt 0:01:59]} e5 {[%emt 0:02:51]} 7. Nge2 {[%emt 0:00:04]} Nc6 {[%emt 0:01:35]} 8. O-O {[%emt 0:00:14]} d6 {[%emt 0:01:40]} 9. Rb1 {[%emt 0:00:36]} g5 {[%emt 0:09:01]} 10. f4 {[%emt 0:02:55]} exf4 {[%emt 0:04:20]} 11. exf4 {[%emt 0:05:19]} g4 {[%emt 0:06:44]} 12. d4 {[%emt 0:03:15]} a5 {[%emt 0:10:44]} 13. d5 {[%emt 0:17:46]} Nb8 {[%emt 0:01:15]} 14. Be3 {[%emt 0:04:24]} Re8 {[%emt 0:01:43]} 15. Bf2 {[%emt 0:01:10]} Nbd7 {[%emt 0:02:18]} 16. Qc2 {[%emt 0:09:47]} Nc5 {[%emt 0:01:39]} 17. Rfe1 {[%emt 0:05:30]} Nfe4 {[%emt 0:04:18]} 18. Bd4 {[%emt 0:03:52]} Bd7 {[%emt 0:06:52]} 19. Bxg7 {[%emt 0:02:36]} Kxg7 {[%emt 0:00:05]} 20. Nxe4 {[%emt 0:03:04]} Nxe4 {[%emt 0:00:11]} 21. Nc3 {[%emt 0:01:36]} Nc5 {[%emt 0:04:20]} 22. Rxe8 {[%emt 0:06:20]} Bxe8 {[%emt 0:02:49]} 23. Re1 {[%emt 0:12:11]} Qf6 {[%emt 0:00:31]} 24. Qd2 {[%emt 0:00:25]} Bd7 {[%emt 0:00:58]} 25. Nd1 {[%emt 0:03:34]} a4 {[%emt 0:03:08]} 26. Qc3 {[%emt 0:01:44]} Kf7 {[%emt 0:05:54]} 27. Bf1 {[%emt 0:03:55]} h5 {[%emt 0:06:42]} 28. Qxf6+ {[%emt 0:02:11]} Kxf6 {[%emt 0:00:06]} 29. Nc3 {[%emt 0:00:48]} h4 {[%emt 0:03:51]} 30. Re3 {[%emt 0:01:29]} h3 {[%emt 0:04:30]} 31. a3 {[%emt 0:01:09]} Ra6 {[%emt 0:01:05]} 32. Re2 {[%emt 0:02:01]} Nb3 {[%emt 0:01:31]} 33. Rf2 {[%emt 0:01:22]} Nd4 {[%emt 0:01:43]} 34. Be2 {[%emt 0:00:13]} Ra5 {[%emt 0:01:03]} 35. Kf1 {[%emt 0:00:55]} Rc5 {[%emt 0:02:59]} 36. Bd3 {[%emt 0:00:01]} Kg6 {[%emt 0:07:01]} 37. Nxa4 {[%emt 0:00:56]} Ra5 {[%emt 0:01:00]} 38. Nc3 {[%emt 0:00:06]} Ra8 {[%emt 0:00:14]} 39. Ne2 {[%emt 0:00:29]} Nf3 {[%emt 0:00:52]} 40. Ng1 {[%emt 0:00:04]} Nd4 {[%emt 0:00:12]} 41. Ne2 {[%emt 0:10:47]} Nf3 {[%emt 0:00:30]} 42. Nc3 {[%emt 0:03:12]} c5 {[%emt 0:03:24]} 43. dxc6 {[%emt 0:01:06]} Bxc6 {[%emt 0:00:19]} 44. Be2 {[%emt 0:02:41]} Nd4 {[%emt 0:02:49]} 45. Bd1 {[%emt 0:00:12]} Bg2+ {[%emt 0:02:36]} 46. Ke1 {[%emt 0:04:07]} Re8+ {[%emt 0:05:18]} 47. Kd2 {[%emt 0:00:01]} Nf3+ {[%emt 0:03:22]} 48. Bxf3 {[%emt 0:00:39]} gxf3 {[%emt 0:00:14]} 49. b3 {[%emt 0:06:06]} Kf7 {[%emt 0:01:30]} 50. Nd5 {[%emt 0:03:45]} Rg8 {[%emt 0:00:38]} 51. Ne3 {[%emt 0:01:02]} Ke6 {[%emt 0:00:30]} 52. Nf1 {[%emt 0:01:43]} d5 {[%emt 0:01:57]} 53. cxd5+ {[%emt 0:00:01]} Kxd5 {[%emt 0:00:06]} 54. Kd3 {[%emt 0:00:25]} Rc8 {[%emt 0:00:34]} 55. Nd2 {[%emt 0:01:01]} Rc1 {[%emt 0:00:47]} 56. Nxf3 {[%emt 0:00:45]} Rh1 {[%emt 0:00:34]} 57. Ke3 {[%emt 0:00:30]} Bxf3 {[%emt 0:01:46]} 58. Kxf3 {[%emt 0:00:39]} Rb1 {[%emt 0:00:04]} 59. Rd2+ {[%emt 0:00:21]} Ke6 {[%emt 0:00:21]} 60. Re2+ {[%emt 0:00:44]} Kf6 {[%emt 0:00:22]} 61. Re3 {[%emt 0:00:35]} Rf1+ {[%emt 0:00:09]} 62. Ke2 {[%emt 0:00:16]} Rh1 {[%emt 0:00:05]} 63. Kf3 {[%emt 0:00:44]} Rf1+ {[%emt 0:02:52]} 64. Ke2 {[%emt 0:00:03]} Rh1 {[%emt 0:00:04]} 65. Kf3 {[%emt 0:00:12]} Rf1+ {[%emt 0:00:11]} 1/2-1/2

[Event "Groningen Festival 2018"]
[Site "Groningen"]
[Date "2018.12.29"]
[Round "8"]
[White "Van Meegen, Ruud"]
[Black "Lahaye, Rick"]
[Result "0-1"]
[ECO "D35"]
[WhiteElo "2230"]
[BlackElo "2404"]
[Annotator "NA"]
[PlyCount "66"]
[EventDate "2018.12.22"]
[EventType "swiss"]
[EventCountry "NED"]
[SourceTitle "playchess.com"]
[Source "ChessBase"]
[SourceQuality "1"]
[TimeControl "40/5400+30:1800+30"]

1. c4 {[%emt 0:00:00]} e6 {[%emt 0:00:00]} 2. Nc3 {[%emt 0:00:00]} d5 {[%emt 0:00:00]} 3. d4 {[%emt 0:00:00]} Nf6 {[%emt 0:00:14]} 4. cxd5 {[%emt 0:00:07]} exd5 {[%emt 0:00:05]} 5. Bg5 {[%emt 0:00:09]} Be7 {[%emt 0:00:05]} 6. e3 {[%emt 0:00:15]} Nbd7 {[%emt 0:00:07]} 7. Bd3 {[%emt 0:00:27]} Nf8 {[%emt 0:00:12]} 8. Nge2 {[%emt 0:00:51]} Ne6 {[%emt 0:00:08]} 9. Bh4 {[%emt 0:00:13]} g6 {[%emt 0:00:49]} 10. f3 {[%emt 0:00:27]} O-O {[%emt 0:00:26]} 11. O-O {[%emt 0:02:29]} b6 {[%emt 0:07:53]} 12. Bf2 {[%emt 0:00:22]} Bb7 {[%emt 0:03:01]} 13. Kh1 {[%emt 0:00:34]} c5 {[%emt 0:00:36]} 14. Bc2 {[%emt 0:06:13]} Rc8 {[%emt 0:06:21]} 15. Rc1 {[%emt 0:15:50]} a6 {[%emt 0:03:23]} 16. dxc5 {[%emt 0:02:48]} bxc5 {[%emt 0:04:39]} 17. Bb3 {[%emt 0:07:09]} Qb6 {[%emt 0:15:39]} 18. Bxd5 {[%emt 0:05:07]} Nxd5 {[%emt 0:06:24]} 19. Nxd5 {[%emt 0:00:08]} Bxd5 {[%emt 0:00:03]} 20. Qxd5 {[%emt 0:00:09]} Qxb2 {[%emt 0:00:08]} 21. Qc4 {[%emt 0:02:19]} Qb5 {[%emt 0:02:10]} 22. a4 {[%emt 0:19:18]} Qxc4 {[%emt 0:01:32]} 23. Rxc4 {[%emt 0:00:05]} Rb8 {[%emt 0:00:04]} 24. Rfc1 {[%emt 0:08:54]} Rfd8 {[%emt 0:00:51]} 25. Be1 {[%emt 0:02:29]} Rd3 {[%emt 0:01:30]} 26. R4c3 {[%emt 0:00:37]} Rb3 {[%emt 0:05:58]} 27. Rxb3 {[%emt 0:00:31]} Rxb3 {[%emt 0:00:29]} 28. Nc3 {[%emt 0:00:07]} c4 {[%emt 0:06:52]} 29. h3 {[%emt 0:04:24]} Ba3 {[%emt 0:01:32]} 30. Rc2 {[%emt 0:00:25]} Bb4 {[%emt 0:01:08]} 31. Bd2 {[%emt 0:00:58]} Nc5 {[%emt 0:00:54]} 32. Kh2 {[%emt 0:03:34]} f5 {[%emt 0:04:09]} 33. a5 {[%emt 0:01:28]} Bxa5 {[%emt 0:01:02]} 0-1

[Event "Groningen Festival 2018"]
[Site "Groningen"]
[Date "2018.12.29"]
[Round "8"]
[White "Nicolai, Amir"]
[Black "Maris, Ivo"]
[Result "0-1"]
[ECO "B48"]
[WhiteElo "2074"]
[BlackElo "2351"]
[Annotator "NA"]
[PlyCount "106"]
[EventDate "2018.12.22"]
[EventType "swiss"]
[EventCountry "NED"]
[SourceTitle "playchess.com"]
[Source "ChessBase"]
[SourceQuality "1"]
[TimeControl "40/5400+30:1800+30"]

1. e4 {[%emt 0:00:00]} c5 {[%emt 0:05:02]} 2. Nf3 {[%emt 0:00:00]} e6 {[%emt 0:00:08]} 3. d4 {[%emt 0:00:00]} cxd4 {[%emt 0:00:04]} 4. Nxd4 {[%emt 0:00:00]} Nc6 {[%emt 0:00:04]} 5. Nc3 {[%emt 0:00:00]} Qc7 {[%emt 0:00:03]} 6. Be3 {[%emt 0:00:01]} a6 {[%emt 0:00:05]} 7. Qf3 {[%emt 0:00:14]} d6 {[%emt 0:00:54]} 8. Nxc6 {[%emt 0:01:44]} bxc6 {[%emt 0:00:28]} 9. O-O-O {[%emt 0:03:11]} Nf6 {[%emt 0:01:29]} 10. Kb1 {[%emt 0:01:27]} e5 {[%emt 0:03:50]} 11. Qg3 {[%emt 0:12:04]} h5 {[%emt 0:06:26]} 12. Bg5 {[%emt 0:04:26]} Nh7 {[%emt 0:08:33]} 13. Bc1 {[%emt 0:06:18]} Nf6 {[%emt 0:03:02]} 14. Bg5 {[%emt 0:06:23]} Be7 {[%emt 0:09:55]} 15. Bc4 {[%emt 0:03:32]} h4 {[%emt 0:04:14]} 16. Qd3 {[%emt 0:05:54]} h3 {[%emt 0:13:33]} 17. g3 {[%emt 0:10:37]} Ng4 {[%emt 0:10:14]} 18. Bxe7 {[%emt 0:03:44]} Kxe7 {[%emt 0:00:26]} 19. Qd2 {[%emt 0:01:43]} Rb8 {[%emt 0:03:26]} 20. f4 {[%emt 0:03:23]} f6 {[%emt 0:04:41]} 21. b3 {[%emt 0:05:20]} Rd8 {[%emt 0:02:13]} 22. f5 {[%emt 0:07:24]} Qb6 {[%emt 0:01:30]} 23. Rhe1 {[%emt 0:04:28]} Qb4 {[%emt 0:04:09]} 24. Bd5 {[%emt 0:01:30]} Qc5 {[%emt 0:02:34]} 25. Na4 {[%emt 0:05:54]} Qb5 {[%emt 0:00:12]} 26. Nc3 {[%emt 0:00:26]} Qb7 {[%emt 0:00:51]} 27. Qe2 {[%emt 0:01:51]} Nh6 {[%emt 0:00:29]} 28. Bc4 {[%emt 0:00:16]} d5 {[%emt 0:03:23]} 29. Nxd5+ {[%emt 0:02:44]} cxd5 {[%emt 0:00:49]} 30. Bxd5 {[%emt 0:00:02]} Qc7 {[%emt 0:05:46]} 31. Qh5 {[%emt 0:03:00]} Bb7 {[%emt 0:00:21]} 32. Be6 {[%emt 0:01:00]} Rxd1+ {[%emt 0:00:38]} 33. Rxd1 {[%emt 0:00:54]} Rd8 {[%emt 0:00:01]} 34. Bd5 {[%emt 0:00:33]} Bxd5 {[%emt 0:01:06]} 35. exd5 {[%emt 0:00:12]} Qc5 {[%emt 0:00:18]} 36. c4 {[%emt 0:00:42]} Qf2 {[%emt 0:00:06]} 37. Qg6 {[%emt 0:01:47]} Qxf5+ {[%emt 0:00:12]} 38. Qxf5 {[%emt 0:00:35]} Nxf5 {[%emt 0:00:02]} 39. Kb2 {[%emt 0:00:17]} Kd6 {[%emt 0:00:36]} 40. Kc3 {[%emt 0:00:18]} Rc8 {[%emt 0:01:03]} 41. g4 {[%emt 0:31:06]} Nd4 {[%emt 0:31:23]} 42. b4 {[%emt 0:02:31]} a5 {[%emt 0:00:43]} 43. bxa5 {[%emt 0:01:53]} Kc5 {[%emt 0:01:25]} 44. Rb1 {[%emt 0:00:27]} Ra8 {[%emt 0:02:45]} 45. Rb7 {[%emt 0:00:45]} Rxa5 {[%emt 0:00:08]} 46. Rc7+ {[%emt 0:00:06]} Kd6 {[%emt 0:00:24]} 47. Rxg7 {[%emt 0:00:07]} Rxa2 {[%emt 0:00:20]} 48. Rf7 {[%emt 0:00:07]} Rxh2 {[%emt 0:00:25]} 49. Rxf6+ {[%emt 0:00:19]} Kc5 {[%emt 0:00:07]} 50. d6 {[%emt 0:00:00]} e4 {[%emt 0:00:00]} 51. Rf5+ {[%emt 0:00:00]} Nxf5 {[%emt 0:00:00]} 52. d7 {[%emt 0:00:00]} Nd4 {[%emt 0:00:00]} 53. d8=Q {[%emt 0:00:00]} Rc2# {[%emt 0:00:00]} 0-1

[Event "Groningen Festival 2018"]
[Site "Groningen"]
[Date "2018.12.30"]
[Round "9"]
[White "Lahaye, Rick"]
[Black "Jedlicka, Ales"]
[Result "1-0"]
[ECO "A36"]
[WhiteElo "2404"]
[BlackElo "2226"]
[Annotator "NA"]
[PlyCount "113"]
[EventDate "2018.12.22"]
[EventType "swiss"]
[EventCountry "NED"]
[SourceTitle "playchess.com"]
[Source "ChessBase"]
[SourceQuality "1"]
[TimeControl "40/5400+30:1800+30"]

1. g3 {[%emt 0:00:00]} Nf6 {[%emt 0:00:01]} 2. Bg2 {[%emt 0:00:00]} c5 {[%emt 0:01:01]} 3. d3 {[%emt 0:00:45]} g6 {[%emt 0:00:28]} 4. c4 {[%emt 0:00:31]} Bg7 {[%emt 0:00:29]} 5. Nc3 {[%emt 0:00:18]} O-O {[%emt 0:00:23]} 6. e3 {[%emt 0:00:49]} Nc6 {[%emt 0:00:40]} 7. Nge2 {[%emt 0:00:07]} d6 {[%emt 0:00:39]} 8. O-O {[%emt 0:00:26]} a6 {[%emt 0:03:43]} 9. h3 {[%emt 0:04:20]} e5 {[%emt 0:01:18]} 10. d4 {[%emt 0:04:54]} Rb8 {[%emt 0:04:46]} 11. dxc5 {[%emt 0:19:40]} dxc5 {[%emt 0:00:40]} 12. b3 {[%emt 0:02:26]} Bf5 {[%emt 0:04:41]} 13. Ba3 {[%emt 0:05:47]} Qa5 {[%emt 0:03:00]} 14. Bb2 {[%emt 0:08:17]} Rfd8 {[%emt 0:00:52]} 15. Nd5 {[%emt 0:00:08]} Nxd5 {[%emt 0:04:57]} 16. cxd5 {[%emt 0:00:19]} b5 {[%emt 0:05:47]} 17. a3 {[%emt 0:16:33]} Qb6 {[%emt 0:03:08]} 18. Rc1 {[%emt 0:04:41]} Na5 {[%emt 0:01:05]} 19. e4 {[%emt 0:08:20]} Bd7 {[%emt 0:00:49]} 20. Bc3 {[%emt 0:04:12]} Rbc8 {[%emt 0:04:29]} 21. Bd2 {[%emt 0:01:59]} c4 {[%emt 0:03:45]} 22. Be3 {[%emt 0:00:10]} Qd6 {[%emt 0:02:10]} 23. b4 {[%emt 0:00:30]} Nb3 {[%emt 0:00:17]} 24. Rb1 {[%emt 0:00:50]} a5 {[%emt 0:00:57]} 25. Nc1 {[%emt 0:08:30]} axb4 {[%emt 0:02:14]} 26. axb4 {[%emt 0:03:19]} Nd4 {[%emt 0:05:19]} 27. Ne2 {[%emt 0:00:15]} c3 {[%emt 0:01:58]} 28. Qd3 {[%emt 0:03:02]} c2 {[%emt 0:03:24]} 29. Rb2 {[%emt 0:00:09]} Rc4 {[%emt 0:01:16]} 30. Nxd4 {[%emt 0:01:56]} exd4 {[%emt 0:01:41]} 31. Bf4 {[%emt 0:00:37]} Qf8 {[%emt 0:08:47]} 32. Rxc2 {[%emt 0:01:15]} Qxb4 {[%emt 0:00:32]} 33. Bd2 {[%emt 0:00:26]} Qc5 {[%emt 0:03:19]} 34. Rb2 {[%emt 0:00:10]} Rc8 {[%emt 0:00:48]} 35. Rfb1 {[%emt 0:00:34]} Rc3 {[%emt 0:01:41]} 36. Qf1 {[%emt 0:00:29]} Qa3 {[%emt 0:06:53]} 37. Qd1 {[%emt 0:00:28]} R3c4 {[%emt 0:03:28]} 38. Bf1 {[%emt 0:00:13]} Qd6 {[%emt 0:02:40]} 39. Qe1 {[%emt 0:01:17]} Re8 {[%emt 0:06:11]} 40. Bf4 {[%emt 0:00:40]} Be5 {[%emt 0:03:55]} 41. Bd2 {[%emt 0:04:58]} Qc5 {[%emt 0:04:49]} 42. Bd3 {[%emt 0:03:38]} f5 {[%emt 0:02:28]} 43. Bb4 {[%emt 0:01:26]} Qc7 {[%emt 0:02:56]} 44. exf5 {[%emt 0:11:15]} Bxg3 {[%emt 0:02:12]} 45. Re2 {[%emt 0:00:16]} Rxe2 {[%emt 0:05:15]} 46. Qxe2 {[%emt 0:00:15]} Rc1+ {[%emt 0:01:36]} 47. Rxc1 {[%emt 0:00:36]} Qxc1+ {[%emt 0:00:10]} 48. Kg2 {[%emt 0:00:04]} Bh4 {[%emt 0:01:40]} 49. Qe5 {[%emt 0:05:27]} Qg5+ {[%emt 0:02:13]} 50. Kh2 {[%emt 0:00:29]} gxf5 {[%emt 0:03:28]} 51. Qxd4 {[%emt 0:02:38]} Qf6 {[%emt 0:02:26]} 52. Qf4 {[%emt 0:00:12]} Bg5 {[%emt 0:02:04]} 53. Qb8+ {[%emt 0:00:50]} Kf7 {[%emt 0:02:41]} 54. Bd6 {[%emt 0:01:22]} Qd4 {[%emt 0:01:25]} 55. Qf8+ {[%emt 0:00:21]} Kg6 {[%emt 0:00:07]} 56. Bxf5+ {[%emt 0:01:26]} Bxf5 {[%emt 0:01:06]} 57. Qe8+ {[%emt 0:00:06]} 1-0

[Event "Groningen Festival 2018"]
[Site "Groningen"]
[Date "2018.12.30"]
[Round "9"]
[White "Kollen, Zyon"]
[Black "Kabos, Tobias"]
[Result "1/2-1/2"]
[ECO "B90"]
[WhiteElo "2363"]
[BlackElo "2299"]
[Annotator "NA"]
[PlyCount "40"]
[EventDate "2018.12.22"]
[EventType "swiss"]
[EventCountry "NED"]
[SourceTitle "playchess.com"]
[Source "ChessBase"]
[SourceQuality "1"]
[TimeControl "40/5400+30:1800+30"]

1. e4 {[%emt 0:00:00]} c5 {[%emt 0:00:00]} 2. Nf3 {[%emt 0:00:00]} d6 {[%emt 0:00:00]} 3. d4 {[%emt 0:00:02]} cxd4 {[%emt 0:00:03]} 4. Nxd4 {[%emt 0:00:05]} Nf6 {[%emt 0:00:11]} 5. Nc3 {[%emt 0:00:07]} a6 {[%emt 0:00:12]} 6. Be3 {[%emt 0:00:12]} e5 {[%emt 0:00:36]} 7. Nb3 {[%emt 0:00:08]} Be6 {[%emt 0:00:42]} 8. f3 {[%emt 0:00:07]} Nbd7 {[%emt 0:00:36]} 9. Qd2 {[%emt 0:00:10]} b5 {[%emt 0:00:48]} 10. a4 {[%emt 0:01:50]} b4 {[%emt 0:03:49]} 11. Nd5 {[%emt 0:00:16]} Bxd5 {[%emt 0:00:29]} 12. exd5 {[%emt 0:00:06]} Nb6 {[%emt 0:00:19]} 13. Bxb6 {[%emt 0:00:08]} Qxb6 {[%emt 0:00:07]} 14. a5 {[%emt 0:00:09]} Qb7 {[%emt 0:00:20]} 15. Bc4 {[%emt 0:00:14]} g6 {[%emt 0:03:11]} 16. Ra4 {[%emt 0:00:25]} Rb8 {[%emt 0:00:26]} 17. Qd3 {[%emt 0:04:39]} Ra8 {[%emt 0:01:48]} 18. Qd2 {[%emt 0:05:25]} Rb8 {[%emt 0:00:14]} 19. Qd3 {[%emt 0:00:12]} Ra8 {[%emt 0:00:11]} 20. Qd2 {[%emt 0:00:10]} Rb8 {[%emt 0:00:10]} 1/2-1/2

[Event "Groningen Festival 2018"]
[Site "Groningen"]
[Date "2018.12.30"]
[Round "9"]
[White "Maris, Ivo"]
[Black "Krasenkova, Ilena"]
[Result "1-0"]
[ECO "B06"]
[WhiteElo "2351"]
[BlackElo "2144"]
[Annotator "NA"]
[PlyCount "83"]
[EventDate "2018.12.22"]
[EventType "swiss"]
[EventCountry "NED"]
[SourceTitle "playchess.com"]
[Source "ChessBase"]
[SourceQuality "1"]
[TimeControl "40/5400+30:1800+30"]

1. d4 {[%emt 0:09:05]} g6 {[%emt 0:00:00]} 2. e4 {[%emt 0:00:29]} Bg7 {[%emt 0:00:00]} 3. Nf3 {[%emt 0:00:13]} d6 {[%emt 0:00:00]} 4. Be2 {[%emt 0:00:22]} Nf6 {[%emt 0:00:03]} 5. Nbd2 {[%emt 0:00:39]} a5 {[%emt 0:01:49]} 6. a4 {[%emt 0:02:44]} O-O {[%emt 0:00:06]} 7. O-O {[%emt 0:00:08]} c6 {[%emt 0:03:24]} 8. Re1 {[%emt 0:04:02]} Qc7 {[%emt 0:00:31]} 9. e5 {[%emt 0:05:37]} dxe5 {[%emt 0:00:27]} 10. Nxe5 {[%emt 0:03:28]} c5 {[%emt 0:03:50]} 11. c3 {[%emt 0:09:14]} cxd4 {[%emt 0:00:26]} 12. cxd4 {[%emt 0:00:02]} Be6 {[%emt 0:00:07]} 13. Ra3 {[%emt 0:01:18]} Nd5 {[%emt 0:05:43]} 14. Ne4 {[%emt 0:05:08]} Nc6 {[%emt 0:10:54]} 15. Ng5 {[%emt 0:07:11]} Bf5 {[%emt 0:04:28]} 16. g4 {[%emt 0:07:41]} Bc8 {[%emt 0:00:04]} 17. Ngxf7 {[%emt 0:02:48]} Rxf7 {[%emt 0:00:11]} 18. Nxf7 {[%emt 0:00:04]} Kxf7 {[%emt 0:00:07]} 19. Bc4 {[%emt 0:00:04]} e6 {[%emt 0:06:28]} 20. Bxd5 {[%emt 0:02:53]} Nxd4 {[%emt 0:03:36]} 21. Bg2 {[%emt 0:01:34]} Ra6 {[%emt 0:05:50]} 22. Rd3 {[%emt 0:06:31]} e5 {[%emt 0:06:57]} 23. Be3 {[%emt 0:03:14]} Rd6 {[%emt 0:05:34]} 24. Bxd4 {[%emt 0:06:09]} exd4 {[%emt 0:02:36]} 25. Rf3+ {[%emt 0:03:48]} Rf6 {[%emt 0:00:14]} 26. g5 {[%emt 0:00:39]} Rf5 {[%emt 0:06:08]} 27. Qb3+ {[%emt 0:00:30]} Kf8 {[%emt 0:00:04]} 28. Rxf5+ {[%emt 0:00:04]} gxf5 {[%emt 0:00:55]} 29. Bd5 {[%emt 0:01:30]} Be5 {[%emt 0:02:25]} 30. Qh3 {[%emt 0:01:13]} Qd6 {[%emt 0:09:39]} 31. Bc4 {[%emt 0:02:38]} Qc5 {[%emt 0:06:24]} 32. b3 {[%emt 0:02:51]} d3 {[%emt 0:03:26]} 33. Qh6+ {[%emt 0:01:42]} Bg7 {[%emt 0:05:33]} 34. Qxh7 {[%emt 0:00:16]} Qxc4 {[%emt 0:00:05]} 35. bxc4 {[%emt 0:00:04]} d2 {[%emt 0:00:28]} 36. Rd1 {[%emt 0:00:06]} Bc3 {[%emt 0:00:32]} 37. Rxd2 {[%emt 0:00:05]} Bxd2 {[%emt 0:00:07]} 38. g6 {[%emt 0:00:20]} Be6 {[%emt 0:00:31]} 39. g7+ {[%emt 0:00:05]} Ke8 {[%emt 0:00:09]} 40. g8=Q+ {[%emt 0:00:07]} Bxg8 {[%emt 0:00:03]} 41. Qxg8+ {[%emt 0:30:06]} Ke7 {[%emt 0:30:06]} 42. Qd5 {[%emt 0:00:08]} 1-0

[Event "Groningen Festival 2018"]
[Site "Groningen"]
[Date "2018.12.30"]
[Round "9"]
[White "Hilwerda, Jonas"]
[Black "Grooten, Herman"]
[Result "1-0"]
[ECO "D02"]
[WhiteElo "2128"]
[BlackElo "2374"]
[Annotator "NA"]
[PlyCount "109"]
[EventDate "2018.12.22"]
[EventType "swiss"]
[EventCountry "NED"]
[SourceTitle "playchess.com"]
[Source "ChessBase"]
[SourceQuality "1"]
[TimeControl "40/5400+30:1800+30"]

1. d4 {[%emt 0:00:00]} Nf6 {[%emt 0:00:00]} 2. Bf4 {[%emt 0:00:40]} d5 {[%emt 0:00:36]} 3. e3 {[%emt 0:00:33]} Bf5 {[%emt 0:02:17]} 4. Nf3 {[%emt 0:01:27]} c5 {[%emt 0:01:02]} 5. dxc5 {[%emt 0:11:00]} Qa5+ {[%emt 0:04:13]} 6. Nbd2 {[%emt 0:01:56]} Nbd7 {[%emt 0:02:30]} 7. Nd4 {[%emt 0:10:01]} Bg4 {[%emt 0:07:11]} 8. f3 {[%emt 0:01:12]} e5 {[%emt 0:04:25]} 9. fxg4 {[%emt 0:02:36]} exf4 {[%emt 0:01:41]} 10. exf4 {[%emt 0:00:46]} O-O-O {[%emt 0:03:24]} 11. Be2 {[%emt 0:24:28]} Bxc5 {[%emt 0:11:48]} 12. c3 {[%emt 0:00:17]} Bxd4 {[%emt 0:02:41]} 13. cxd4 {[%emt 0:00:03]} Ne4 {[%emt 0:00:14]} 14. Qc2+ {[%emt 0:11:35]} Kb8 {[%emt 0:00:33]} 15. Rd1 {[%emt 0:00:10]} Rc8 {[%emt 0:09:25]} 16. Qd3 {[%emt 0:00:17]} Nxd2 {[%emt 0:00:57]} 17. Qxd2 {[%emt 0:00:45]} Qxa2 {[%emt 0:00:43]} 18. O-O {[%emt 0:00:27]} Qb3 {[%emt 0:03:28]} 19. Rf3 {[%emt 0:07:15]} Qc2 {[%emt 0:00:49]} 20. Bd3 {[%emt 0:01:51]} Qxd2 {[%emt 0:00:27]} 21. Rxd2 {[%emt 0:00:02]} Rhe8 {[%emt 0:02:39]} 22. g5 {[%emt 0:04:38]} g6 {[%emt 0:01:55]} 23. f5 {[%emt 0:04:06]} Re7 {[%emt 0:01:45]} 24. h4 {[%emt 0:03:02]} Rg8 {[%emt 0:04:53]} 25. Kf2 {[%emt 0:03:52]} Kc7 {[%emt 0:01:14]} 26. Kg3 {[%emt 0:01:24]} gxf5 {[%emt 0:13:56]} 27. Bxf5 {[%emt 0:00:50]} h6 {[%emt 0:01:51]} 28. Rc2+ {[%emt 0:03:26]} Kd6 {[%emt 0:06:27]} 29. Bxd7 {[%emt 0:00:36]} Kxd7 {[%emt 0:00:07]} 30. Rf5 {[%emt 0:00:18]} f6 {[%emt 0:03:31]} 31. Rxf6 {[%emt 0:02:24]} hxg5 {[%emt 0:00:05]} 32. h5 {[%emt 0:00:20]} Re3+ {[%emt 0:02:07]} 33. Kf2 {[%emt 0:00:55]} Re4 {[%emt 0:00:10]} 34. Rf7+ {[%emt 0:00:22]} Ke6 {[%emt 0:00:06]} 35. Rcc7 {[%emt 0:03:04]} Rxd4 {[%emt 0:02:07]} 36. Rce7+ {[%emt 0:00:01]} Kd6 {[%emt 0:00:09]} 37. Rd7+ {[%emt 0:00:01]} Kc5 {[%emt 0:00:24]} 38. Rc7+ {[%emt 0:00:02]} Kb5 {[%emt 0:01:05]} 39. Rxb7+ {[%emt 0:00:10]} Kc4 {[%emt 0:00:08]} 40. Rbc7+ {[%emt 0:02:22]} Kd3 {[%emt 0:00:44]} 41. h6 {[%emt 0:05:53]} Rg6 {[%emt 0:04:24]} 42. h7 {[%emt 0:08:58]} Rh6 {[%emt 0:00:56]} 43. g3 {[%emt 0:04:55]} Rb4 {[%emt 0:04:06]} 44. Rxa7 {[%emt 0:07:37]} Rxb2+ {[%emt 0:05:06]} 45. Kf3 {[%emt 0:00:01]} Rbh2 {[%emt 0:02:22]} 46. Kg4 {[%emt 0:01:08]} R6h3 {[%emt 0:00:53]} 47. Rfd7 {[%emt 0:02:19]} Kd4 {[%emt 0:03:29]} 48. Ra5 {[%emt 0:00:31]} Ke5 {[%emt 0:00:19]} 49. Rdxd5+ {[%emt 0:00:39]} Ke6 {[%emt 0:00:46]} 50. Re5+ {[%emt 0:01:12]} Kf6 {[%emt 0:00:33]} 51. Reb5 {[%emt 0:00:24]} Ke7 {[%emt 0:03:53]} 52. Rb6 {[%emt 0:00:37]} Kd8 {[%emt 0:00:19]} 53. Ra7 {[%emt 0:00:33]} Kc8 {[%emt 0:00:04]} 54. Rg6 {[%emt 0:00:53]} Kb8 {[%emt 0:00:31]} 55. Rf7 {[%emt 0:00:28]} 1-0